bitfinex/quotes_BTCUSD_20241028
["timestamp","ask_amount","ask_price","bid_price","bid_amount"]
[1730081008971,0.147662,67722.0,67721.0,0.000823]
[1730081008972,0.24012221,67722.0,67721.0,0.000823]
[1730081009433,0.147662,67722.0,67721.0,0.000823]
[1730081011015,0.149306,67722.0,67721.0,0.000823]
[1730081011481,0.001644,67722.0,67721.0,0.000823]
[1730081011716,0.149306,67722.0,67721.0,0.000823]
[1730081012182,0.001644,67722.0,67721.0,0.000823]
[1730081012421,0.001644,67722.0,67721.0,0.41205341]
[1730081012637,0.001644,67722.0,67721.0,0.40129081]
[1730081012875,0.001644,67722.0,67721.0,0.40910049]
[1730081016185,0.001644,67722.0,67721.0,0.41110049]
[1730081016644,0.001644,67722.0,67721.0,0.41310049]
[1730081020588,0.001644,67722.0,67721.0,0.41810049]
[1730081020813,0.001644,67722.0,67721.0,0.6070607]
[1730081021046,0.001644,67722.0,67721.0,0.41810049]
[1730081023044,0.001644,67722.0,67721.0,0.42007872]
[1730081024778,0.001644,67722.0,67721.0,0.61733893]
[1730081025001,0.001644,67722.0,67721.0,0.61933893]
[1730081026875,0.001644,67722.0,67721.0,0.66365719]
[1730081027085,0.001644,67722.0,67721.0,0.66165719]
[1730081027299,0.001644,67722.0,67721.0,0.61733893]
[1730081027529,0.001644,67722.0,67721.0,0.60755102]
[1730081027994,0.001644,67722.0,67721.0,0.60955102]
[1730081030059,0.001644,67722.0,67721.0,0.60755102]
[1730081032019,0.001644,67722.0,67721.0,0.60955102]
[1730081039214,0.001644,67722.0,67721.0,0.60755102]
[1730081039434,0.001644,67722.0,67721.0,0.51275102]
[1730081039857,0.001644,67722.0,67721.0,0.54232102]
[1730081040076,0.001644,67722.0,67721.0,0.51275102]
[1730081040725,0.001644,67722.0,67721.0,0.42029081]
[1730081040960,0.001644,67722.0,67721.0,0.34099081]
[1730081042486,0.001644,67722.0,67721.0,0.43345102]
[1730081043989,0.001644,67722.0,67721.0,0.34099081]
[1730081044199,0.001644,67722.0,67721.0,0.32599081]
[1730081044466,0.092644,67722.0,67721.0,0.004823]
[1730081044690,0.240306,67722.0,67721.0,0.004823]
[1730081045160,0.320706,67722.0,67721.0,0.004823]
[1730081045614,0.320706,67722.0,67721.0,0.000823]
[1730081045842,0.41316621,67722.0,67721.0,0.000823]
[1730081046070,0.320706,67722.0,67721.0,0.000823]
[1730081046539,0.45494231,67722.0,67721.0,0.000823]
[1730081046765,0.45694231,67722.0,67721.0,0.000823]
[1730081047202,0.45494231,67722.0,67721.0,0.000823]
[1730081047450,0.320706,67722.0,67721.0,0.000823]
[1730081048149,0.335706,67722.0,67721.0,0.000823]
[1730081048409,0.327706,67722.0,67721.0,0.000823]
[1730081048629,0.46294231,67722.0,67721.0,0.000823]
[1730081049070,0.46194231,67722.0,67721.0,0.000823]
[1730081049288,0.46294231,67722.0,67721.0,0.000823]
[1730081049936,0.45594231,67722.0,67721.0,0.000823]
[1730081050168,0.45694231,67722.0,67721.0,0.000823]
[1730081051284,0.175044,67722.0,67721.0,0.000823]
[1730081052646,0.322706,67722.0,67721.0,0.000823]
[1730081053082,0.321706,67722.0,67721.0,0.000823]
[1730081053740,0.320706,67722.0,67721.0,0.000823]
[1730081056455,0.173044,67722.0,67721.0,0.000823]
[1730081056674,0.320706,67722.0,67721.0,0.000823]
[1730081060694,0.45494231,67722.0,67721.0,0.000823]
[1730081064623,0.45794231,67722.0,67721.0,0.000823]
[1730081064855,0.46094231,67722.0,67721.0,0.000823]
[1730081065094,0.45794231,67722.0,67721.0,0.000823]
[1730081065309,0.46394231,67722.0,67721.0,0.000823]
[1730081066435,0.46094231,67722.0,67721.0,0.000823]
[1730081066865,0.46694231,67722.0,67721.0,0.000823]
[1730081067288,0.45494231,67722.0,67721.0,0.000823]
[1730081067495,0.46794231,67722.0,67721.0,0.000823]
[1730081067743,0.46094231,67722.0,67721.0,0.000823]
[1730081067947,0.55494231,67722.0,67721.0,0.000823]
[1730081068156,0.68299539,67722.0,67721.0,0.000823]
[1730081068376,0.68999539,67722.0,67721.0,0.000823]
[1730081068794,0.56994231,67722.0,67721.0,0.000823]
[1730081070357,0.72044612,67722.0,67721.0,0.000823]
[1730081070571,0.77123309,67722.0,67721.0,0.000823]
[1730081082992,0.67872145,67722.0,67721.0,0.000823]
[1730081083225,0.77123309,67722.0,67721.0,0.000823]
[1730081084333,0.83727281,67722.0,67721.0,0.000823]
[1730081085656,0.91049673,67722.0,67721.0,0.000823]
[1730081086096,0.77123309,67722.0,67721.0,0.000823]
[1730081086529,0.83729637,67722.0,67721.0,0.000823]
[1730081086818,0.91045555,67722.0,67721.0,0.000823]
[1730081087036,0.77123309,67722.0,67721.0,0.000823]
[1730081087249,0.83729471,67722.0,67721.0,0.000823]
[1730081087455,0.91051141,67722.0,67721.0,0.000823]
[1730081087676,0.91050434,67722.0,67721.0,0.000823]
[1730081088341,0.99858788,67722.0,67721.0,0.000823]
[1730081088571,0.91050434,67722.0,67721.0,0.000823]
[1730081089008,0.99858788,67722.0,67721.0,0.000823]
[1730081089215,0.96017496,67722.0,67721.0,0.000823]
[1730081089917,0.91050434,67722.0,67721.0,0.000823]
[1730081090138,1.02060877,67722.0,67721.0,0.000823]
[1730081091502,1.02075507,67722.0,67721.0,0.000823]
[1730081093362,0.91055649,67722.0,67721.0,0.000823]
[1730081095726,1.02075507,67722.0,67721.0,0.000823]
[1730081096394,1.02071605,67722.0,67721.0,0.000823]
[1730081097720,1.01871605,67722.0,67721.0,0.000823]
[1730081097947,1.1203762,67722.0,67721.0,0.000823]
[1730081098159,0.24020664,67707.0,67706.0,0.000835]
[1730081098443,0.39071045,67707.0,67706.0,0.000835]
[1730081098649,0.29819881,67707.0,67706.0,0.000835]
[1730081098858,0.147695,67707.0,67706.0,0.000835]
[1730081099071,0.24020664,67707.0,67706.0,0.000835]
[1730081099519,0.24620664,67707.0,67706.0,0.000835]
[1730081099756,0.39671045,67707.0,67706.0,0.000835]
[1730081100194,0.24620664,67707.0,67706.0,0.000835]
[1730081100400,0.25320664,67707.0,67706.0,0.000835]
[1730081110151,0.160695,67707.0,67706.0,0.000835]
[1730081110364,0.24620664,67707.0,67706.0,0.000835]
[1730081110596,0.24520664,67707.0,67706.0,0.000835]
[1730081110810,0.24020664,67707.0,67706.0,0.000835]
[1730081111027,0.24520664,67707.0,67706.0,0.000835]
[1730081111265,0.24920664,67707.0,67706.0,0.000835]
[1730081111482,0.147695,67707.0,67706.0,0.000835]
[1730081111908,0.149695,67707.0,67706.0,0.000835]
[1730081112419,0.147695,67707.0,67706.0,0.000835]
[1730081112651,0.147695,67707.0,67706.0,0.001835]
[1730081112864,0.149695,67707.0,67706.0,0.001835]
[1730081113093,0.147695,67707.0,67706.0,0.01151062]
[1730081113333,0.147695,67707.0,67706.0,0.001835]
[1730081113552,0.24120664,67707.0,67706.0,0.001835]
[1730081114010,0.001,67707.0,67706.0,0.001835]
[1730081114259,0.001,67707.0,67706.0,0.15920745]
[1730081114480,0.001,67707.0,67706.0,0.000835]
[1730081114700,0.002,67707.0,67706.0,0.000835]
[1730081114920,0.002,67707.0,67706.0,0.01050807]
[1730081115160,0.001,67707.0,67706.0,0.01050807]
[1730081115382,0.148695,67707.0,67706.0,0.01050807]
[1730081115601,0.001,67707.0,67706.0,0.01150807]
[1730081116263,0.001,67707.0,67706.0,0.15920507]
[1730081116508,0.147691,67709.0,67706.0,0.15920507]
[1730081116726,0.147691,67709.0,67706.0,0.01250807]
[1730081116953,0.0441061,67716.0,67707.0,0.15050381]
[1730081117167,0.21984948,67714.0,67710.0,0.023]
[1730081117383,0.21984948,67714.0,67713.0,0.147682]
[1730081117804,0.001644,67719.0,67710.0,0.17350381]
[1730081118021,0.001644,67719.0,67715.0,0.147677]
[1730081118022,0.149314,67719.0,67715.0,0.147677]
[1730081118235,0.001644,67719.0,67713.0,0.295361]
[1730081118447,0.002,67714.0,67713.0,0.147682]
[1730081118667,0.002,67714.0,67712.0,0.147684]
[1730081118938,0.002,67714.0,67706.0,0.000835]
[1730081118939,0.002,67714.0,67706.0,0.078935]
[1730081118940,0.295368,67712.0,67706.0,0.078935]
[1730081119384,0.09251164,67713.0,67706.0,0.08860807]
[1730081119602,0.14769,67710.0,67706.0,0.08860807]
[1730081119825,0.14769,67710.0,67706.0,0.23630407]
[1730081120038,0.14769,67710.0,67706.0,0.08860807]
[1730081120039,0.14769,67709.0,67706.0,0.08860807]
[1730081120300,0.14769,67709.0,67706.0,0.23630507]
[1730081120738,0.295372,67711.0,67706.0,0.23630507]
[1730081120959,0.147689,67710.0,67706.0,0.08960807]
[1730081121389,0.147691,67709.0,67706.0,0.09060807]
[1730081121645,0.147691,67709.0,67706.0,0.09160807]
[1730081121884,0.147691,67709.0,67706.0,0.09060807]
[1730081122093,0.147691,67709.0,67706.0,0.09160807]
[1730081122784,0.147691,67709.0,67706.0,0.08960807]
[1730081123217,0.147695,67708.0,67706.0,0.08960807]
[1730081123431,0.147695,67708.0,67706.0,0.08860807]
[1730081123649,0.147691,67709.0,67706.0,0.08860807]
[1730081123869,0.147693,67708.0,67706.0,0.08860807]
[1730081124524,0.295377,67710.0,67706.0,0.08860807]
[1730081124738,0.147692,67709.0,67706.0,0.08860807]
[1730081125404,0.147691,67709.0,67706.0,0.08860807]
[1730081125623,0.147693,67708.0,67706.0,0.08860807]
[1730081125838,0.147691,67709.0,67706.0,0.08860807]
[1730081126726,0.295375,67711.0,67706.0,0.08860807]
[1730081126967,0.147688,67710.0,67706.0,0.08860807]
[1730081128088,0.147693,67708.0,67706.0,0.01050807]
[1730081129160,0.295375,67711.0,67706.0,0.01050807]
[1730081129379,0.147692,67709.0,67706.0,0.01050807]
[1730081130476,0.295377,67710.0,67706.0,0.01050807]
[1730081130692,0.147695,67707.0,67706.0,0.01050807]
[1730081130909,0.147693,67708.0,67706.0,0.01050807]
[1730081131363,0.21984948,67712.0,67706.0,0.01050807]
[1730081131586,0.147692,67709.0,67706.0,0.01050807]
[1730081131797,0.147691,67709.0,67706.0,0.000835]
[1730081132455,0.295377,67710.0,67706.0,0.000835]
[1730081132711,0.147691,67709.0,67706.0,0.000835]
[1730081133373,0.147695,67707.0,67706.0,0.000835]
[1730081133612,0.245595,67707.0,67706.0,0.000835]
[1730081135654,0.33810664,67707.0,67706.0,0.000835]
[1730081135868,0.28976511,67707.0,67706.0,0.000835]
[1730081136108,0.245595,67707.0,67706.0,0.000835]
[1730081136541,0.250595,67707.0,67706.0,0.000835]
[1730081136767,0.29475584,67707.0,67706.0,0.000835]
[1730081137013,0.251595,67707.0,67706.0,0.000835]
[1730081137240,0.153695,67707.0,67706.0,0.000835]
[1730081137458,0.147695,67707.0,67706.0,0.000835]
[1730081137720,0.160695,67707.0,67706.0,0.000835]
[1730081139129,0.147695,67707.0,67706.0,0.000835]
[1730081139331,0.149695,67707.0,67706.0,0.000835]
[1730081139546,0.155695,67707.0,67706.0,0.000835]
[1730081139974,0.149695,67707.0,67706.0,0.000835]
[1730081142646,0.002,67707.0,67706.0,0.000835]
[1730081142868,0.149695,67707.0,67706.0,0.000835]
[1730081143326,0.002,67707.0,67706.0,0.000835]
[1730081143785,0.002,67707.0,67706.0,0.148532]
[1730081144018,0.002,67707.0,67706.0,0.32314364]
[1730081144661,0.002,67707.0,67706.0,0.17544664]
[1730081145171,0.002,67707.0,67706.0,0.082935]
[1730081146273,0.149695,67707.0,67706.0,0.082935]
[1730081146495,0.149695,67707.0,67706.0,0.000835]
[1730081147352,0.002,67707.0,67706.0,0.000835]
[1730081152817,0.149695,67707.0,67706.0,0.000835]
[1730081157688,0.147695,67707.0,67706.0,0.000835]
[1730081158105,0.148695,67707.0,67706.0,0.000835]
[1730081158646,0.149695,67707.0,67706.0,0.000835]
[1730081159286,0.001,67707.0,67706.0,0.000835]
[1730081159511,0.147695,67707.0,67706.0,0.000835]
[1730081159732,0.151695,67707.0,67706.0,0.000835]
[1730081163258,0.004,67707.0,67706.0,0.000835]
[1730081163341,0.151695,67707.0,67706.0,0.000835]
[1730081173031,0.004,67707.0,67706.0,0.000835]
[1730081173237,0.151695,67707.0,67706.0,0.000835]
[1730081173445,0.149695,67707.0,67706.0,0.000835]
[1730081173861,0.147695,67707.0,67706.0,0.000835]
[1730081175329,0.147693,67708.0,67706.0,0.000835]
[1730081175537,0.147695,67707.0,67706.0,0.000835]
[1730081175964,0.092,67714.0,67706.0,0.296226]
[1730081176202,0.21984948,67713.0,67707.0,0.17826504]
[1730081176402,0.295369,67712.0,67707.0,0.0828]
[1730081176611,0.147688,67710.0,67707.0,0.147694]
[1730081178526,0.147688,67710.0,67707.0,0.023]
[1730081178748,0.147695,67707.0,67706.0,0.000835]
[1730081179228,0.316695,67707.0,67706.0,0.000835]
[1730081180386,0.320695,67707.0,67706.0,0.000835]
[1730081181355,0.41320664,67707.0,67706.0,0.000835]
[1730081181569,0.62996882,67707.0,67706.0,0.000835]
[1730081182062,0.53345718,67707.0,67706.0,0.000835]
[1730081182314,0.011,67707.0,67706.0,0.000835]
[1730081182527,0.21993715,67707.0,67706.0,0.000835]
[1730081182751,0.21393715,67707.0,67706.0,0.000835]
[1730081182969,0.22293715,67707.0,67706.0,0.000835]
[1730081183181,0.22193715,67707.0,67706.0,0.000835]
[1730081183634,0.22893715,67707.0,67706.0,0.000835]
[1730081184339,0.22093715,67707.0,67706.0,0.000835]
[1730081184549,0.22693715,67707.0,67706.0,0.000835]
[1730081185212,0.154695,67707.0,67706.0,0.000835]
[1730081185647,0.147695,67707.0,67706.0,0.000835]
[1730081186102,0.001,67707.0,67706.0,0.000835]
[1730081186327,0.002,67707.0,67706.0,0.000835]
[1730081186563,0.001,67707.0,67706.0,0.000835]
[1730081186796,0.001,67707.0,67706.0,0.148532]
[1730081187016,0.002,67707.0,67706.0,0.148532]
[1730081187445,0.295366,67713.0,67706.0,0.000835]
[1730081187694,0.13737274,67716.0,67707.0,0.295389]
[1730081187932,0.14768,67714.0,67710.0,0.147688]
[1730081188401,0.0932,67716.0,67706.0,0.000835]
[1730081188608,0.0932,67716.0,67711.0,0.147684]
[1730081188902,0.147682,67713.0,67708.0,0.295386]
[1730081189142,0.147682,67713.0,67709.0,0.14769]
[1730081189835,0.147682,67713.0,67708.0,0.295386]
[1730081190049,0.14968,67714.0,67710.0,0.147686]
[1730081190269,0.147682,67713.0,67710.0,0.147686]
[1730081190461,0.002,67714.0,67712.0,0.147683]
[1730081190702,0.149681,67714.0,67710.0,0.147686]
[1730081190919,0.001,67713.0,67710.0,0.147686]
[1730081191349,0.001,67713.0,67712.0,0.147684]
[1730081191568,0.001,67713.0,67706.0,0.023835]
[1730081191797,0.002,67713.0,67710.0,0.147687]
[1730081192014,0.001,67713.0,67710.0,0.147687]
[1730081192231,0.295355,67715.0,67710.0,0.147687]
[1730081192485,0.006,67713.0,67712.0,0.147684]
[1730081192718,0.006,67713.0,67711.0,0.147685]
[1730081193187,0.147679,67715.0,67711.0,0.147685]
[1730081193404,0.002,67713.0,67712.0,0.147684]
[1730081193675,0.002,67713.0,67710.0,0.443059]
[1730081193920,0.002,67713.0,67709.0,0.14769]
[1730081194138,0.002,67713.0,67710.0,0.443063]
[1730081194384,0.002,67713.0,67708.0,0.295383]
[1730081194615,0.002,67713.0,67710.0,0.295373]
[1730081194833,0.005,67713.0,67711.0,0.147685]
[1730081195305,0.005,67713.0,67710.0,0.147688]
[1730081195537,0.152682,67713.0,67710.0,0.147688]
[1730081195772,0.150682,67713.0,67710.0,0.147688]
[1730081196268,0.152682,67713.0,67710.0,0.147688]
[1730081196495,0.147682,67713.0,67708.0,0.295386]
[1730081196716,0.147682,67713.0,67709.0,0.14769]
[1730081198297,0.147682,67713.0,67710.0,0.147688]
[1730081198501,0.147682,67713.0,67708.0,0.443077]
[1730081199122,0.147682,67713.0,67709.0,0.14769]
[1730081199350,0.147678,67715.0,67711.0,0.147685]
[1730081199559,0.14768,67714.0,67711.0,0.147685]
[1730081199776,0.14768,67714.0,67709.0,0.147688]
[1730081200006,0.30819837,67725.0,67708.0,0.295386]
[1730081200221,0.51519148,67718.0,67709.0,0.14769]
[1730081200462,0.51519148,67718.0,67708.0,0.295386]
[1730081200463,0.21984948,67718.0,67711.0,0.147684]
[1730081200671,0.147679,67715.0,67711.0,0.147684]
[1730081200898,0.14768,67714.0,67711.0,0.147684]
[1730081201586,0.14768,67714.0,67708.0,0.295386]
[1730081201805,0.295351,67716.0,67708.0,0.295386]
[1730081202035,0.21984948,67718.0,67706.0,0.17433881]
[1730081202276,0.147674,67717.0,67714.0,0.147679]
[1730081202509,0.21984948,67718.0,67707.0,0.1342376]
[1730081202730,0.21984948,67718.0,67711.0,0.147684]
[1730081202731,0.443019,67717.0,67711.0,0.147684]
[1730081202952,0.147679,67715.0,67711.0,0.147684]
[1730081204065,0.14768,67714.0,67709.0,0.000822]
[1730081204284,0.14768,67714.0,67711.0,0.147685]
[1730081204505,0.14768,67714.0,67709.0,0.000822]
[1730081204714,0.14768,67714.0,67711.0,0.147686]
[1730081205415,0.147682,67713.0,67710.0,0.147688]
[1730081205682,0.295358,67715.0,67710.0,0.147688]
[1730081205928,0.14768,67714.0,67710.0,0.147688]
[1730081206166,0.147681,67714.0,67710.0,0.147688]
[1730081206397,0.295353,67716.0,67709.0,0.000822]
[1730081206603,0.147679,67715.0,67711.0,0.147684]
[1730081206832,0.147677,67715.0,67711.0,0.147684]
[1730081207073,0.295353,67716.0,67711.0,0.147684]
[1730081207487,0.14768,67714.0,67711.0,0.147684]
[1730081209781,0.295351,67716.0,67710.0,0.295375]
[1730081209990,0.147678,67715.0,67710.0,0.295375]
[1730081210224,0.295355,67715.0,67710.0,0.147687]
[1730081210438,0.147683,67713.0,67709.0,0.148512]
[1730081210884,0.21984948,67718.0,67709.0,0.000822]
[1730081211344,0.147678,67715.0,67711.0,0.147685]
[1730081211827,0.14768,67714.0,67711.0,0.147685]
[1730081212954,0.147682,67713.0,67709.0,0.148511]
[1730081213176,0.147682,67713.0,67709.0,0.000822]
[1730081213177,0.147688,67710.0,67709.0,0.000822]
[1730081213399,0.295365,67713.0,67709.0,0.000822]
[1730081213400,0.147688,67711.0,67709.0,0.000822]
[1730081214534,0.392861,67714.0,67709.0,0.000822]
[1730081214973,0.0975,67714.0,67709.0,0.000822]
[1730081215191,0.147684,67712.0,67709.0,0.000822]
[1730081216472,0.392862,67714.0,67710.0,0.147687]
[1730081216473,0.24518,67714.0,67710.0,0.147687]
[1730081216694,0.147684,67713.0,67709.0,0.000822]
[1730081217335,0.147684,67713.0,67709.0,0.148512]
[1730081217547,0.392861,67714.0,67711.0,0.147685]
[1730081217548,0.0975,67714.0,67711.0,0.147685]
[1730081217761,0.147682,67713.0,67709.0,0.148511]
[1730081217970,0.147682,67713.0,67709.0,0.000822]
[1730081218601,0.147682,67713.0,67709.0,0.148512]
[1730081219314,0.0975,67714.0,67709.0,0.148512]
[1730081219315,0.0975,67714.0,67709.0,0.000822]
[1730081219533,0.245181,67714.0,67709.0,0.148512]
[1730081220428,0.0975,67714.0,67709.0,0.000822]
[1730081220697,0.31732651,67732.0,67718.0,0.147671]
[1730081220698,0.22149348,67722.0,67718.0,0.147671]
[1730081220947,0.21984948,67721.0,67718.0,0.33912789]
[1730081221144,0.001644,67722.0,67718.0,0.33912789]
[1730081221145,0.001644,67722.0,67718.0,0.42077481]
[1730081221574,0.001644,67722.0,67718.0,0.60572887]
[1730081222225,0.001644,67722.0,67718.0,0.60372887]
[1730081222438,0.001644,67722.0,67718.0,0.51125184]
[1730081222668,0.001644,67722.0,67718.0,0.41877481]
[1730081223583,0.001644,67722.0,67718.0,0.55492825]
[1730081224009,0.001644,67722.0,67718.0,0.55292825]
[1730081224219,0.001644,67722.0,67718.0,0.55492825]
[1730081224698,0.001644,67722.0,67718.0,0.55692825]
[1730081225610,0.001644,67722.0,67718.0,0.55892825]
[1730081227197,0.001644,67722.0,67718.0,0.89320369]
[1730081227409,0.001644,67722.0,67718.0,0.93738601]
[1730081227620,0.001644,67722.0,67718.0,0.89320369]
[1730081227839,0.001644,67722.0,67718.0,0.93738566]
[1730081228282,0.001644,67722.0,67718.0,0.92279369]
[1730081228494,0.001644,67722.0,67718.0,0.96697566]
[1730081228929,0.001644,67728.0,67727.0,0.017]
[1730081229142,0.001644,67728.0,67727.0,0.78099825]
[1730081229583,0.001644,67728.0,67727.0,0.91515169]
[1730081229798,0.001644,67728.0,67727.0,0.94394854]
[1730081230018,0.001644,67728.0,67727.0,0.91435854]
[1730081230886,0.001644,67728.0,67727.0,0.91635854]
[1730081231094,0.001646,67736.0,67734.0,0.60088944]
[1730081231305,0.001646,67736.0,67734.0,0.88554669]
[1730081231515,0.001646,67736.0,67734.0,0.75139325]
[1730081232388,0.001646,67736.0,67734.0,0.75539325]
[1730081232825,0.001646,67736.0,67734.0,0.88954669]
[1730081233032,0.21984948,67754.0,67745.0,0.32176544]
[1730081233242,0.21984948,67754.0,67745.0,0.64806925]
[1730081233714,0.21984948,67754.0,67753.0,0.154594]
[1730081233923,0.21984948,67754.0,67753.0,0.46320284]
[1730081234159,0.21984948,67754.0,67753.0,0.46025125]
[1730081234366,0.04415352,67758.0,67757.0,0.147586]
[1730081234552,0.04415352,67758.0,67757.0,0.32108981]
[1730081234787,0.04415352,67758.0,67757.0,0.46024325]
[1730081234994,0.39064948,67765.0,67764.0,0.14757]
[1730081235426,0.1708,67765.0,67764.0,0.14757]
[1730081235855,0.1708,67765.0,67762.0,0.295149]
[1730081236111,0.1708,67765.0,67764.0,0.14757]
[1730081236316,0.0919,67765.0,67764.0,0.14757]
[1730081236956,0.0919,67765.0,67763.0,0.170572]
[1730081237175,0.0919,67765.0,67764.0,0.14757]
[1730081237605,0.0929,67765.0,67764.0,0.14757]
[1730081238257,0.0929,67765.0,67763.0,0.17450381]
[1730081238472,0.0929,67765.0,67754.0,0.295184]
[1730081238473,0.147579,67761.0,67756.0,0.170588]
[1730081238686,0.295165,67759.0,67755.0,0.023]
[1730081238891,0.147586,67757.0,67755.0,0.023]
[1730081239101,0.082,67758.0,67753.0,0.023]
[1730081239313,0.147586,67757.0,67755.0,0.023]
[1730081239521,0.229585,67758.0,67755.0,0.023]
[1730081240028,0.229585,67758.0,67755.0,0.17059]
[1730081240212,0.082,67758.0,67755.0,0.17059]
[1730081240422,0.082,67758.0,67757.0,0.147586]
[1730081241066,0.322213,67765.0,67759.0,0.295159]
[1730081241284,0.322213,67765.0,67761.0,0.147577]
[1730081241492,0.174644,67765.0,67764.0,0.14757]
[1730081241704,0.174644,67765.0,67761.0,0.15050381]
[1730081241705,0.174644,67765.0,67763.0,0.147572]
[1730081241960,0.174644,67765.0,67762.0,0.29515]
[1730081241961,0.174644,67765.0,67764.0,0.14757]
[1730081242392,0.174644,67765.0,67761.0,0.44565681]
[1730081242393,0.174644,67765.0,67763.0,0.147573]
[1730081242827,0.174644,67765.0,67764.0,0.14957]
[1730081244120,0.174644,67765.0,67764.0,0.14757]
[1730081244570,0.174644,67765.0,67764.0,0.14957]
[1730081245204,0.174644,67765.0,67764.0,0.15157]
[1730081246556,0.174644,67765.0,67764.0,0.004]
[1730081246769,0.322212,67765.0,67764.0,0.004]
[1730081247824,0.322212,67765.0,67761.0,0.29807981]
[1730081247825,0.322212,67765.0,67762.0,0.147575]
[1730081248246,0.322212,67765.0,67758.0,0.295167]
[1730081248247,0.322212,67765.0,67764.0,0.001]
[1730081248478,0.45636544,67765.0,67764.0,0.001]
[1730081248683,0.45636544,67765.0,67764.0,0.003]
[1730081248892,0.45636544,67765.0,67764.0,0.002]
[1730081249935,0.147573,67763.0,67762.0,0.002]
[1730081250563,0.091,67764.0,67757.0,0.295169]
[1730081250780,0.091,67764.0,67758.0,0.295168]
[1730081251006,0.091,67764.0,67763.0,0.147573]
[1730081253427,0.093,67764.0,67763.0,0.147573]
[1730081253835,0.091,67764.0,67763.0,0.147573]
[1730081254315,0.094,67764.0,67763.0,0.147573]
[1730081254950,0.097,67764.0,67763.0,0.147573]
[1730081256883,0.094,67764.0,67763.0,0.147573]
[1730081257522,0.091,67764.0,67763.0,0.149573]
[1730081257729,0.091,67764.0,67763.0,0.151573]
[1730081258162,0.091,67764.0,67763.0,0.149573]
[1730081258374,0.091,67764.0,67763.0,0.151573]
[1730081259014,0.091,67764.0,67763.0,0.174573]
[1730081259230,0.00152594,67765.0,67764.0,0.17057]
[1730081260568,0.00152594,67765.0,67764.0,0.17257]
[1730081261010,0.00152594,67765.0,67764.0,0.17457]
[1730081263617,0.00152594,67765.0,67764.0,0.027]
[1730081263830,0.00152594,67765.0,67764.0,0.17457]
[1730081266948,0.00152594,67765.0,67764.0,0.65277843]
[1730081267182,0.00152594,67765.0,67764.0,0.64982725]
[1730081267390,0.00152594,67765.0,67764.0,0.67843366]
[1730081267602,0.00152594,67765.0,67764.0,0.33807381]
[1730081267817,0.00152594,67765.0,67764.0,0.33607381]
[1730081268033,0.00152594,67765.0,67764.0,0.34007381]
[1730081268480,0.00152594,67765.0,67764.0,0.33607381]
[1730081268700,0.00152594,67765.0,67764.0,0.33807381]
[1730081269348,0.00152594,67765.0,67764.0,0.56709341]
[1730081269814,0.00152594,67765.0,67764.0,0.56909341]
[1730081270230,0.00152594,67765.0,67764.0,0.50292095]
[1730081271111,0.00152594,67765.0,67764.0,0.50492095]
[1730081271320,0.00152594,67765.0,67764.0,0.59284435]
[1730081271739,0.00152594,67765.0,67764.0,0.34207381]
[1730081271950,0.00152594,67765.0,67764.0,0.59335933]
[1730081272411,0.00152594,67765.0,67764.0,0.50505584]
[1730081273788,0.21984948,67774.0,67773.0,0.170551]
[1730081274007,0.21984948,67774.0,67773.0,0.55031466]
[1730081274221,0.0998,67778.0,67774.0,0.170549]
[1730081274441,0.0998,67778.0,67774.0,0.48403484]
[1730081274650,0.0998,67778.0,67774.0,0.5724051]
[1730081275338,0.0998,67778.0,67774.0,0.48403484]
[1730081275564,0.0806,67783.0,67774.0,0.48403484]
[1730081276045,0.0806,67783.0,67774.0,0.48603484]
[1730081276263,0.0806,67783.0,67774.0,0.49103484]
[1730081276508,0.0806,67783.0,67774.0,0.55732737]
[1730081276743,0.31844948,67784.0,67774.0,0.60349767]
[1730081276744,0.21984948,67784.0,67774.0,0.60349767]
[1730081276989,0.21984948,67784.0,67774.0,0.49503484]
[1730081277692,0.21984948,67784.0,67774.0,0.49103484]
[1730081277950,0.001644,67785.0,67774.0,0.50103484]
[1730081278163,0.001644,67785.0,67774.0,0.68223484]
[1730081278394,0.001644,67785.0,67774.0,0.68685149]
[1730081279101,0.001644,67785.0,67774.0,0.68885149]
[1730081280004,0.001644,67785.0,67774.0,0.68883605]
[1730081280457,0.001644,67785.0,67774.0,0.68683605]
[1730081280695,0.001644,67785.0,67774.0,0.68883605]
[1730081281179,0.001644,67785.0,67774.0,0.68883612]
[1730081281419,0.001644,67785.0,67774.0,0.794565]
[1730081281664,0.31804948,67784.0,67774.0,0.6030194]
[1730081281881,0.46557648,67784.0,67774.0,0.5800194]
[1730081282096,0.31804948,67784.0,67774.0,0.6462285]
[1730081282334,0.31804948,67784.0,67774.0,0.41705281]
[1730081282544,0.31804948,67784.0,67774.0,0.48787888]
[1730081282766,0.31804948,67784.0,67774.0,0.41966978]
[1730081283007,0.31804948,67784.0,67774.0,0.6055834]
[1730081283240,0.31804948,67784.0,67774.0,0.67178113]
[1730081283692,0.31804948,67784.0,67774.0,0.67378113]
[1730081284216,0.31804948,67784.0,67774.0,0.5055834]
[1730081284443,0.46557748,67784.0,67774.0,0.33605281]
[1730081284679,0.42921244,67783.0,67774.0,0.32105281]
[1730081284948,0.147534,67781.0,67774.0,0.32105281]
[1730081285178,0.147534,67781.0,67774.0,0.32305281]
[1730081285419,0.147534,67781.0,67774.0,0.32105281]
[1730081285610,0.147534,67781.0,67774.0,0.32505281]
[1730081286282,0.295059,67783.0,67774.0,0.32505281]
[1730081286981,0.147534,67781.0,67774.0,0.32505281]
[1730081287429,0.147531,67782.0,67774.0,0.32505281]
[1730081287646,0.295071,67781.0,67774.0,0.174549]
[1730081287885,0.47646707,67775.0,67774.0,0.004]
[1730081288107,0.62401407,67775.0,67774.0,0.004]
[1730081288542,0.47646707,67775.0,67772.0,0.147552]
[1730081288732,0.47646707,67775.0,67774.0,0.004]